{"text_format":"1","workbook":"xlsx","n_sheets":5,"sheets":["Zadanie1","Zadanie4Faktura","Zadanie4Odbiorcy","Zadanie7Specyfikacja","Zadanie7Dane"],"not_rendered":{"charts":0,"images":0,"macros":1,"external_links":0,"defined_names":1,"comments":0,"pivot_tables":0},"unopened":[],"bounds":{"document_bytes":16777216,"sheet_cells":100000,"rows_first":2000,"rows_last":500,"rows_between":2000,"halvings":0,"cell_chars":16384,"cell_head_chars":4096},"cells_cut":0,"cells_raw":0,"read":"whole","date_system":"1900"}

{"sheet":"Zadanie1","index":0,"n_rows":13,"n_cols":6,"rows_kept":13,"cut":false,"hidden":false,"merged":[]}
[]
["REALIZACJA ZLECEŃ"]
["ZLECENIA","DATA ROZPOCZĘCIA","DATA UKOŃCZENIA","% WYKONANIA","GOTOWE","UWAGI"]
["Zlecenie nr 1","2018-02-12","2019-02-18",0,{"$f":"--(Zadania[[#This Row],[% WYKONANIA]]>=1)","v":0},"brak części"]
["Zlecenie nr 2","2018-02-14","2019-02-23",0.5,{"$f":"--(Zadania[[#This Row],[% WYKONANIA]]>=1)","v":0}]
["Zlecenie nr 3","2018-11-19","2018-11-28",1,{"$f":"--(Zadania[[#This Row],[% WYKONANIA]]>=1)","v":1}]
["Zlecenie nr 4","2018-02-12","2019-03-04",0.25,{"$f":"--(Zadania[[#This Row],[% WYKONANIA]]>=1)","v":0}]
["Zlecenie nr 5","2018-02-14","2019-03-03",0.25,{"$f":"--(Zadania[[#This Row],[% WYKONANIA]]>=1)","v":0}]
["Zlecenie nr 6","2018-11-22","2018-11-30",1,{"$f":"--(Zadania[[#This Row],[% WYKONANIA]]>=1)","v":1}]
[]
[]
[null,null,"Liczba zleceń niewykonanych:",{"$f":"COUNTIF(Zadania[% WYKONANIA],0)","v":1}]
[null,null,"Liczba zleceń wykonanych:",{"$f":"COUNTIF(Zadania[% WYKONANIA],1)","v":2}]

{"sheet":"Zadanie4Faktura","index":1,"n_rows":27,"n_cols":4,"rows_kept":27,"cut":false,"hidden":false,"merged":[[0,2,0,3],[25,1,25,3],[26,1,26,3]]}
[null,"Nazwa Twojej firmy","FAKTURA"]
[null,"Motto firmy"]
[null,"Ulica","DATA:",{"$f":"TODAY()","v":"2019-01-13"}]
[null,"Kod pocztowy i miasto","NR FAKTURY",100]
[null,"Telefon [numer]   Faks [numer]","DOTYCZY:","Opis projektu lub usługi"]
[null,"Odbiorca faktury:"]
[null,"Imię i nazwisko"]
[null,"Nazwa firmy"]
[null,"Adres"]
[]
[]
[null,"OPIS"," ","KWOTA"]
[]
[]
[]
[]
[]
[]
[]
[]
[]
[]
[]
[null,null,"SUMA",{"$f":"SUBTOTAL(109,Faktura[KWOTA])","v":0}]
[null,{"$f":"\"Wszystkie przelewy należy wystawić na firmę \"&Nazwa_firmy&\"\"","v":"Wszystkie przelewy należy wystawić na firmę Nazwa Twojej firmy"}]
[null,"W razie jakichkolwiek pytań dotyczących tej faktury należy skontaktować się z następującą osobą: Imię i nazwisko, Numer telefonu, Adres e-mail"]
[null,"DZIĘKUJEMY ZA KORZYSTANIE Z NASZYCH USŁUG! "]

{"sheet":"Zadanie4Odbiorcy","index":2,"n_rows":3,"n_cols":4,"rows_kept":3,"cut":false,"hidden":false,"merged":[[0,0,0,3]]}
["Odbiorcy faktury"]
[null,"Imię i nazwisko","Nazwa firmy","Adres"]
[null,"Imię i nazwisko","Nazwa firmy","Adres"]

{"sheet":"Zadanie7Specyfikacja","index":3,"n_rows":38,"n_cols":7,"rows_kept":38,"cut":false,"hidden":false,"merged":[[22,3,22,8],[0,0,3,1],[3,3,3,8],[4,2,4,8],[6,3,9,8],[10,3,11,8],[13,3,13,8],[14,3,14,8],[15,3,15,8],[16,3,16,8],[18,3,18,8],[21,3,21,8],[36,3,39,8],[23,3,23,8],[24,3,24,8],[25,3,25,8],[26,3,26,8],[27,3,27,8],[30,3,30,8],[31,3,31,8],[32,3,32,8],[33,3,33,8],[34,3,34,8],[35,3,35,8]]}
["PPH ALFA",null,null,"SPECYFIKACJA",null,null,"Strona : 1"]
[null,null,null,"JAKOŚCIOWA",null,null,"Ilość stron : 1"]
[null,null,null,"    produktu"]
[null,null,"Kod : ",{"$f":"Zadanie7Dane!B1","v":"/07/05/ E/ "}]
[null,null,{"$f":"Zadanie7Dane!B2","v":"ZAGĘSZCZONY SOK Z ARONII"}]
[]
["Opis produktu:",null,null,{"$f":"Zadanie7Dane!B3","v":"Produkt otrzymany z nie zafermentowanego i chemicznie nie konserwowanego soku jabłkowego , zagęszczony w wyniku odparowania wody w aparacie wyparnym próżniowym ."}]
[]
[]
[]
["Przeznaczenie:",null,null,{"$f":"Zadanie7Dane!B4","v":"Produkt wyjściowy do produkcji soków owocowych"}]
[]
["Charakterystyka produktu :"]
[" forma opakowania",null,null,{"$f":"Zadanie7Dane!B6","v":"beczki , cysterny"}]
[" cechy sensoryczne",null,null,{"$f":"Zadanie7Dane!B7","v":"produkt o konsystencji płynnej "}]
[" barwa",null,null,{"$f":"Zadanie7Dane!B8","v":"złocisto- bursztynowa w odcieniach"}]
[" zapach , smak",null,null,{"$f":"Zadanie7Dane!B9","v":"typowy dla jabłek , osłabiony w wyniku oddzielania aromatu"}]
[]
["Składniki",null,null,{"$f":"Zadanie7Dane!B10","v":"jabłka"}]
["Cechy fizyko - chemiczne :"]
[]
["ekstrakt refraktometryczny ",null,null,{"$f":"Zadanie7Dane!B12","v":"65,0+/- 0,50 Bx ; 70,0+/-0,50 Bx ; wg wymagań klienta"}]
["kwasowość ogólna",null,null,{"$f":"Zadanie7Dane!B13","v":"2,0- 6,0% wag. ( w przeliczeniu na kwas jabłkowy, pH=8,1 )"}]
["NTU- nefelometrycznie",null,null,{"$f":"Zadanie7Dane!B14","v":"do 3 0 NTU"}]
["barwa - pomiar ekstynkcji ",null,null,{"$f":"Zadanie7Dane!B15","v":"(λ= 440 nm )  35-65%"}]
["zawartość metali szkodliwych",null,null,{"$f":"Zadanie7Dane!B16","v":"kadm- 0,02mg ; ołów- 0,2 mg ; arsen - 0,1 mg ;"}]
["patulina",null,null,{"$f":"Zadanie7Dane!B17","v":"nie więcej niż 50 µg/ l, wg wymagań klienta "}]
["Materiał opakowaniowy",null,null,{"$f":"Zadanie7Dane!B18","v":"worki polietylenowe z korkiem aseptycznym"}]
["Cechy mikrobiologiczne :"]
[]
["ogólna liczba drobnoustrojów",null,null,{"$f":"Zadanie7Dane!B20","v":"w 1 g nie więcej niż 1000 PN , wg wymagań klienta"}]
["ogólna liczba drożdży",null,null,{"$f":"Zadanie7Dane!B21","v":"w 1 g nie więcej niż 300 PN , wg wymagań klienta"}]
["ogólna liczba pleśni",null,null,{"$f":"Zadanie7Dane!B22","v":"w 1 g nie więcej niż 100 PN , wg wymagań klienta"}]
["Warunki przechowywania",null,null,{"$f":"Zadanie7Dane!B23","v":"magazyn zamknięty , temperatura 0 do +7 0 C"}]
["Warunki transportu",null,null,{"$f":"Zadanie7Dane!B24","v":"izoterma"}]
["Okres trwałości",null,null,{"$f":"Zadanie7Dane!B25","v":"25 miesiące"}]
[null,null,null,{"$f":"Zadanie7Dane!B26","v":"etykieta zawiera : asortyment, nazwa i adres producenta, parametry, data produkcji, termin przydatności, warunki przechowywania, data rozlewu, kod wyrobu, nr beczki, masa netto."}]
["Wzór etykiety"]

{"sheet":"Zadanie7Dane","index":4,"n_rows":26,"n_cols":7,"rows_kept":26,"cut":false,"hidden":false,"merged":[]}
["Kod","/07/05/ E/ ","/07/04/ E/ ","/07/05/ E/ ","/07/06/ E/ ","/07/07/ E/ ","/07/08/ E/ "]
["Produkt","ZAGĘSZCZONY SOK Z ARONII","ZAGĘSZCZONY SOK Z JABŁEK","ZAGĘSZCZONY SOK Z ARONII","ZAGĘSZCZONY SOK Z WIŚNI","ZAGĘSZCZONY SOK Z GRANATU","ZAGĘSZCZONY SOK Z CYTRYN"]
["Opis produktu:","Produkt otrzymany z nie zafermentowanego i chemicznie nie konserwowanego soku jabłkowego , zagęszczony w wyniku odparowania wody w aparacie wyparnym próżniowym .","Produkt otrzymany z nie zafermentowanego i chemicznie nie konserwowanego soku jabłkowego , zagęszczony w wyniku odparowania wody w aparacie wyparnym próżniowym .","Produkt otrzymany z nie zafermentowanego i chemicznie nie konserwowanego soku jabłkowego , zagęszczony w wyniku odparowania wody w aparacie wyparnym próżniowym .","Produkt otrzymany z nie zafermentowanego i chemicznie nie konserwowanego soku jabłkowego , zagęszczony w wyniku odparowania wody w aparacie wyparnym próżniowym .","Produkt otrzymany z nie zafermentowanego i chemicznie nie konserwowanego soku jabłkowego , zagęszczony w wyniku odparowania wody w aparacie wyparnym próżniowym .","Produkt otrzymany z nie zafermentowanego i chemicznie nie konserwowanego soku jabłkowego , zagęszczony w wyniku odparowania wody w aparacie wyparnym próżniowym ."]
["Przeznaczenie:","Produkt wyjściowy do produkcji soków owocowych","Produkt wyjściowy do produkcji soków owocowych","Produkt wyjściowy do produkcji soków owocowych","Produkt wyjściowy do produkcji soków owocowych","Produkt wyjściowy do produkcji soków owocowych","Produkt wyjściowy do produkcji soków owocowych"]
["Charakterystyka produktu :"]
[" forma opakowania","beczki , cysterny","beczki , cysterny","beczki , cysterny","beczki , cysterny","beczki , cysterny","beczki , cysterny"]
[" cechy sensoryczne","produkt o konsystencji płynnej ","produkt o konsystencji płynnej ","produkt o konsystencji płynnej ","produkt o konsystencji płynnej ","produkt o konsystencji płynnej ","produkt o konsystencji płynnej "]
[" barwa","złocisto- bursztynowa w odcieniach","złocisto- bursztynowa w odcieniach","złocisto- bursztynowa w odcieniach","złocisto- bursztynowa w odcieniach","złocisto- bursztynowa w odcieniach","złocisto- bursztynowa w odcieniach"]
[" zapach , smak","typowy dla jabłek , osłabiony w wyniku oddzielania aromatu","typowy dla jabłek , osłabiony w wyniku oddzielania aromatu","typowy dla jabłek , osłabiony w wyniku oddzielania aromatu","typowy dla jabłek , osłabiony w wyniku oddzielania aromatu","typowy dla jabłek , osłabiony w wyniku oddzielania aromatu","typowy dla jabłek , osłabiony w wyniku oddzielania aromatu"]
["Składniki","jabłka","jabłka","jabłka","jabłka","jabłka","jabłka"]
["Cechy fizyko - chemiczne :"]
["ekstrakt refraktometryczny ","65,0+/- 0,50 Bx ; 70,0+/-0,50 Bx ; wg wymagań klienta","65,0+/- 0,50 Bx ; 70,0+/-0,50 Bx ; wg wymagań klienta","65,0+/- 0,50 Bx ; 70,0+/-0,50 Bx ; wg wymagań klienta","65,0+/- 0,50 Bx ; 70,0+/-0,50 Bx ; wg wymagań klienta","65,0+/- 0,50 Bx ; 70,0+/-0,50 Bx ; wg wymagań klienta","65,0+/- 0,50 Bx ; 70,0+/-0,50 Bx ; wg wymagań klienta"]
["kwasowość ogólna","2,0- 6,0% wag. ( w przeliczeniu na kwas jabłkowy, pH=8,1 )","2,0- 6,0% wag. ( w przeliczeniu na kwas jabłkowy, pH=8,1 )","2,0- 6,0% wag. ( w przeliczeniu na kwas jabłkowy, pH=8,1 )","2,0- 6,0% wag. ( w przeliczeniu na kwas jabłkowy, pH=8,1 )","2,0- 6,0% wag. ( w przeliczeniu na kwas jabłkowy, pH=8,1 )","2,0- 6,0% wag. ( w przeliczeniu na kwas jabłkowy, pH=8,1 )"]
["NTU- nefelometrycznie","do 3 0 NTU","do 3 0 NTU","do 3 0 NTU","do 3 0 NTU","do 3 0 NTU","do 3 0 NTU"]
["barwa - pomiar ekstynkcji ","(λ= 440 nm )  35-65%","(λ= 440 nm )  35-65%","(λ= 440 nm )  35-65%","(λ= 440 nm )  35-65%","(λ= 440 nm )  35-65%","(λ= 440 nm )  35-65%"]
["zawartość metali szkodliwych","kadm- 0,02mg ; ołów- 0,2 mg ; arsen - 0,1 mg ;","kadm- 0,02mg ; ołów- 0,2 mg ; arsen - 0,1 mg ;","kadm- 0,02mg ; ołów- 0,2 mg ; arsen - 0,1 mg ;","kadm- 0,02mg ; ołów- 0,2 mg ; arsen - 0,1 mg ;","kadm- 0,02mg ; ołów- 0,2 mg ; arsen - 0,1 mg ;","kadm- 0,02mg ; ołów- 0,2 mg ; arsen - 0,1 mg ;"]
["patulina","nie więcej niż 50 µg/ l, wg wymagań klienta ","nie więcej niż 50 µg/ l, wg wymagań klienta ","nie więcej niż 50 µg/ l, wg wymagań klienta ","nie więcej niż 50 µg/ l, wg wymagań klienta ","nie więcej niż 50 µg/ l, wg wymagań klienta ","nie więcej niż 50 µg/ l, wg wymagań klienta "]
["Materiał opakowaniowy","worki polietylenowe z korkiem aseptycznym","worki polietylenowe z korkiem aseptycznym","worki polietylenowe z korkiem aseptycznym","worki polietylenowe z korkiem aseptycznym","worki polietylenowe z korkiem aseptycznym","worki polietylenowe z korkiem aseptycznym"]
["Cechy mikrobiologiczne :"]
["ogólna liczba drobnoustrojów","w 1 g nie więcej niż 1000 PN , wg wymagań klienta","w 1 g nie więcej niż 1000 PN , wg wymagań klienta","w 1 g nie więcej niż 1000 PN , wg wymagań klienta","w 1 g nie więcej niż 1000 PN , wg wymagań klienta","w 1 g nie więcej niż 1000 PN , wg wymagań klienta","w 1 g nie więcej niż 1000 PN , wg wymagań klienta"]
["ogólna liczba drożdży","w 1 g nie więcej niż 300 PN , wg wymagań klienta","w 1 g nie więcej niż 300 PN , wg wymagań klienta","w 1 g nie więcej niż 300 PN , wg wymagań klienta","w 1 g nie więcej niż 300 PN , wg wymagań klienta","w 1 g nie więcej niż 300 PN , wg wymagań klienta","w 1 g nie więcej niż 300 PN , wg wymagań klienta"]
["ogólna liczba pleśni","w 1 g nie więcej niż 100 PN , wg wymagań klienta","w 1 g nie więcej niż 100 PN , wg wymagań klienta","w 1 g nie więcej niż 100 PN , wg wymagań klienta","w 1 g nie więcej niż 100 PN , wg wymagań klienta","w 1 g nie więcej niż 100 PN , wg wymagań klienta","w 1 g nie więcej niż 100 PN , wg wymagań klienta"]
["Warunki przechowywania","magazyn zamknięty , temperatura 0 do +7 0 C","magazyn zamknięty , temperatura 0 do +7 0 C","magazyn zamknięty , temperatura 0 do +7 0 C","magazyn zamknięty , temperatura 0 do +7 0 C","magazyn zamknięty , temperatura 0 do +7 0 C","magazyn zamknięty , temperatura 0 do +7 0 C"]
["Warunki transportu","izoterma","izoterma","izoterma","izoterma","izoterma","izoterma"]
["Okres trwałości","25 miesiące","24 miesiące","25 miesiące","26 miesiące","27 miesiące","28 miesiące"]
["Wzór etykiety","etykieta zawiera : asortyment, nazwa i adres producenta, parametry, data produkcji, termin przydatności, warunki przechowywania, data rozlewu, kod wyrobu, nr beczki, masa netto.","etykieta zawiera : asortyment, nazwa i adres producenta, parametry, data produkcji, termin przydatności, warunki przechowywania, data rozlewu, kod wyrobu, nr beczki, masa netto.","etykieta zawiera : asortyment, nazwa i adres producenta, parametry, data produkcji, termin przydatności, warunki przechowywania, data rozlewu, kod wyrobu, nr beczki, masa netto.","etykieta zawiera : asortyment, nazwa i adres producenta, parametry, data produkcji, termin przydatności, warunki przechowywania, data rozlewu, kod wyrobu, nr beczki, masa netto.","etykieta zawiera : asortyment, nazwa i adres producenta, parametry, data produkcji, termin przydatności, warunki przechowywania, data rozlewu, kod wyrobu, nr beczki, masa netto.","etykieta zawiera : asortyment, nazwa i adres producenta, parametry, data produkcji, termin przydatności, warunki przechowywania, data rozlewu, kod wyrobu, nr beczki, masa netto."]